[Event "German Bundesliga 2022-23"]
[Site "Germany"]
[Date "2022.11.26"]
[Round "3.15"]
[White "Vyval, Volodymyr"]
[Black "Palac, Mladen"]
[Result "0-1"]
[ECO "B91"]
[WhiteElo "2305"]
[BlackElo "2509"]
[Annotator "TA"]
[PlyCount "90"]
[EventDate "2022.10.21"]
[EventType "team-tourn"]
[EventCountry "GER"]
[SourceTitle "playchess.com"]
[Source "ChessBase"]
[SourceQuality "1"]
[TimeControl "40/6000+30:3000+30"]

{[%evp 18,90,15,3,33,24,21,13,26,12,20,6,21,0,7,28,14,-45,-33,-19,-20,-44,-44,-44,7,-18,-16,-42,-26,-85,-124,-205,-200,-241,-190,-209,-204,-211,-191,-220,-223,-216,-190,-193,-163,-240,-231,-245,-239,-227,-231,-250,-233,-279,-274,-317,-308,-308,-301,-301,-285,-339,-347,-378,-381,-516,-513,-523,-499,-938,-679,-906,-825,-1140,-1087]} 1. e4 {[%emt 0:00:09]} c5 {[%emt 0:00:03]} 2. Nf3 {[%emt 0:00:10][%cal Bg1f3,Bf3d4,Bd4e2][%mdl 32]} d6 {[%emt 0:00:09]} 3. d4 {[%emt 0:00:14]} cxd4 {[%emt 0:00:10]} 4. Nxd4 {[%emt 0:00:05]} Nf6 {[%emt 0:00:09]} 5. Nc3 {[%emt 0:00:09]} a6 {[%emt 0:00:05]} 6. g3 {[%emt 0:00:27]} e5 {[%emt 0:00:50]} 7. Nde2 {[%emt 0:00:06]} Be7 {[%emt 0:00:06]} 8. Bg2 {[%emt 0:00:10]} O-O {[%emt 0:00:24]} 9. a4 {[%emt 0:00:40]} Nc6 {[%emt 0:01:25]} 10. O-O {[%emt 0:00:24]} Nb4 {[%emt 0:03:33] B91: Sicilian Najdorf: 6 g3.} 11. b3 {[%emt 0:01:10]} Be6 {[%emt 0:00:21]} 12. Ba3 {[%emt 0:00:29]} a5 {[%emt 0:00:35] The position is equal.} 13. Nb5 {[%emt 0:02:07]} d5 {[%emt 0:01:59]} 14. exd5 {[%emt 0:13:34]} Bxd5 {[%emt 0:04:26]} 15. c3 {[%emt 0:06:48]} Nc6 {[%emt 0:11:59]} 16. Bxe7 {[%emt 0:08:52]} Nxe7 {[%emt 0:00:15] [#]} 17. Ra2 $146 {[%emt 0:04:29]} (17. Bxd5 $11 Qxd5 18. Qxd5 Nfxd5 19. Rad1) ({Predecessor:} 17. c4 Bxg2 18. Kxg2 Qb6 19. Nec3 Rad8 20. Qe2 Nc6 21. Rad1 Qc5 22. Qf3 h6 23. Nd5 Nxd5 24. Rxd5 Rxd5 25. Qxd5 {1-0 (43) Engel,L (2512)-Roseneck,J (2403) Willingen 2019}) 17... Qb6 {[%emt 0:05:44]} (17... Bxg2 {simplifies} 18. Qxd8 Rfxd8 19. Kxg2 Ne4) 18. Bxd5 {[%emt 0:04:31]} Nexd5 {[%emt 0:01:45]} 19. Rd2 {[%emt 0:01:22]} Rad8 {[%emt 0:01:48] [#] ...Ne3 is the strong threat.} 20. Rd3 {[%emt 0:09:28] Inhibits Ne3.} Ne7 {[%emt 0:08:11]} (20... Qe6 $15 21. Qd2 (21. c4 Qh3 $17) 21... Rc8) 21. Rd6 {[%emt 0:03:08]} Rxd6 {[%emt 0:08:17]} 22. Qxd6 {[%emt 0:00:09]} Nc6 {[%emt 0:00:04]} 23. Qa3 {[%emt 0:01:31]} (23. Qd3 $11 {remains equal.}) 23... Ne4 $17 {[%emt 0:07:12][%cal Bf6e4,Be4d2,Bd2b3,Bb3c5][%mdl 32] Black keeps a firm grip on the game.} 24. Qc1 {[%emt 0:17:01]} (24. c4 $17 {was worth a try.}) 24... Rd8 $19 {[%emt 0:00:27]} 25. Kg2 {[%emt 0:06:48]} Nd2 {[%emt 0:04:05]} 26. Re1 {[%emt 0:05:14]} Nxb3 {[%emt 0:01:05]} 27. Qc2 {[%emt 0:00:22]} Nc5 {[%emt 0:00:30] White must now prevent ...Nd3.} 28. Rb1 {[%emt 0:00:50]} Ne7 {[%emt 0:06:03]} 29. Kg1 {[%emt 0:05:55]} Qg6 {[%emt 0:07:51]} 30. Qxg6 {[%emt 0:05:02]} hxg6 {[%emt 0:00:01]} ({Not} 30... fxg6 31. Na3 $17) 31. Kf1 {[%emt 0:01:18]} (31. Na3 {might work better.}) 31... Rd7 {[%emt 0:09:37]} (31... Nxa4 $2 32. Ra1 Nb6 33. Rxa5) 32. Na3 {[%emt 0:01:52]} Nxa4 {[%emt 0:05:14]} 33. Nc4 {[%emt 0:00:26]} Nc6 {[%emt 0:00:06]} 34. Ke1 {[%emt 0:05:15]} f6 {[%emt 0:02:04]} 35. Rb5 {[%emt 0:00:27] [#]} b6 $1 {[%emt 0:00:15]} 36. h4 {[%emt 0:01:57]} Na7 {[%emt 0:02:00]} 37. Rb3 {[%emt 0:01:13]} Rc7 {[%emt 0:00:57]} 38. Ne3 {[%emt 0:00:46]} Kf7 {[%emt 0:03:23]} 39. Nd5 {[%emt 0:01:13]} Rc6 {[%emt 0:00:47]} 40. Ra3 {[%emt 0:02:14]} Nb2 {[%emt 0:01:17]} 41. Nb4 {[%emt 0:24:01]} Rd6 {[%emt 0:05:34][%csl Gb2][%cal Rd6d1] Black is clearly winning.} (41... axb4 $2 42. Rxa7+ Kg8 43. cxb4 $19) 42. f4 {[%emt 0:02:30]} Nb5 {[%emt 0:02:18]} (42... axb4 $2 {loses.} 43. Rxa7+ Kg8 44. cxb4 $19) 43. Rb3 {[%emt 0:00:26]} (43. Ra2 $142 Rd1+ 44. Kf2) 43... Rd1+ {[%emt 0:00:14]} 44. Kf2 {[%emt 0:00:09]} Rb1 {[%emt 0:00:10]} 45. c4 {[%emt 0:03:18]} Nd1+ {[%emt 0:00:07] Weighted Error Value: White=0.45/Black=0.06 (flawless)} ({Weaker is} 45... Nxc4 46. Rxb1 Nba3 47. Rb3 $16) 0-1

[Event "German Bundesliga 2022-23"]
[Site "Germany"]
[Date "2022.11.26"]
[Round "3.16"]
[White "Zelcic, Robert"]
[Black "Saric, Ante"]
[Result "0-1"]
[ECO "C10"]
[WhiteElo "2496"]
[BlackElo "2504"]
[Annotator "TA"]
[PlyCount "94"]
[EventDate "2022.10.21"]
[EventType "team-tourn"]
[EventCountry "GER"]
[SourceTitle "playchess.com"]
[Source "ChessBase"]
[SourceQuality "1"]
[TimeControl "40/6000+30:3000+30"]

{[%evp 14,94,29,26,22,23,27,26,36,22,25,22,22,22,18,18,20,20,18,-14,-14,0,5,-3,0,-11,-11,-12,-12,-11,-11,-11,-12,-20,0,0,0,-14,-13,-32,-29,-21,0,-8,0,0,0,0,0,0,0,-31,0,-20,-20,-172,-70,-80,-26,-32,-33,-33,-33,-33,0,-33,-27,-87,-77,-92,-95,-85,-88,-51,-93,-1105,-1015,-12836,-911,-911,-975,-911,-911]} 1. e4 {[%emt 0:00:03]} e6 {[%emt 0:00:05]} 2. d4 {[%emt 0:00:05]} d5 {[%emt 0:00:04]} 3. Nc3 {[%emt 0:00:04]} dxe4 {[%emt 0:00:05]} 4. Nxe4 {[%emt 0:00:04]} Nd7 {[%emt 0:00:06]} 5. Nf3 {[%emt 0:00:05]} Ngf6 {[%emt 0:00:05]} 6. Bd3 {[%emt 0:00:27]} c5 $1 {[%emt 0:00:22][%mdl 4] is recently more successful than 6...Nxe4.} 7. Nxf6+ {[%emt 0:00:04]} Nxf6 {[%emt 0:00:08]} 8. Be3 {[%emt 0:00:03]} Qc7 {[%emt 0:01:43] C10: French with 3 Nc3: Unusual Black 3rd moves and 3...dxe4.} 9. Qe2 {[%emt 0:00:06]} a6 {[%emt 0:04:38]} 10. O-O {[%emt 0:00:30]} b6 {[%emt 0:04:26] White has an edge.} 11. c4 {[%emt 0:21:14]} Be7 {[%emt 0:09:23] was the old line (11...Bb7).} 12. Rfd1 {[%emt 0:17:50]} Bb7 {[%emt 0:07:35]} 13. dxc5 {[%emt 0:08:59]} Bxc5 {[%emt 0:06:59]} 14. Bxc5 {[%emt 0:02:28]} Qxc5 {[%emt 0:09:39] [#]} 15. Ne5 $146 {[%emt 0:05:55]} ({Predecessor:} 15. a3 a5 16. Ne5 O-O 17. Rd2 g6 18. Rad1 a4 19. h3 Kg7 20. Bb1 {½-½ (20) Wernikiewicz,Z (2262)-Koch,C (2312) LSS email 2020}) 15... Rd8 {[%emt 0:22:50]} 16. Rd2 {[%emt 0:15:45]} Ke7 {[%emt 0:01:16]} 17. Rad1 {[%emt 0:00:28]} Be4 {[%emt 0:07:10]} 18. Bxe4 {[%emt 0:01:29]} (18. Ng4 {is more complex.} Bc6 19. Nxf6 gxf6 20. Be4) 18... Qxe5 {[%emt 0:00:28]} 19. Rxd8 {[%emt 0:00:09]} Rxd8 {[%emt 0:00:10]} 20. Rxd8 {[%emt 0:00:05]} Kxd8 $11 {[%emt 0:00:13][%mdl 4096] Endgame KQB-KQN} 21. Qd2+ {[%emt 0:00:20]} Ke7 {[%emt 0:04:15]} (21... Kc7 {with more complications.} 22. Bf3 a5 23. g3 Ne8) 22. Bf3 {[%emt 0:03:22]} a5 {[%emt 0:02:03]} 23. g3 {[%emt 0:00:22]} g5 {[%emt 0:00:37]} 24. a3 {[%emt 0:09:29]} h6 {[%emt 0:02:40]} 25. Qc1 {[%emt 0:03:00]} Qd4 {[%emt 0:03:35]} 26. b4 {[%emt 0:02:11]} axb4 {[%emt 0:03:34]} 27. axb4 {[%emt 0:00:02]} Nd7 {[%emt 0:01:06]} 28. Qc2 {[%emt 0:03:39]} Qa1+ {[%emt 0:08:59]} 29. Kg2 {[%emt 0:00:15]} Qa3 {[%emt 0:01:23] Against c5} 30. Qb1 {[%emt 0:05:23]} Ne5 {[%emt 0:02:40]} 31. Be2 {[%emt 0:00:09]} f5 {[%emt 0:01:48]} 32. Kg1 {[%emt 0:01:45]} (32. b5 {seems wilder.} g4 33. h3 h5 34. hxg4 hxg4 35. Qc2) 32... Qc3 {[%emt 0:01:20]} (32... g4 $5 {[%cal Ra3c3]}) 33. c5 {[%emt 0:01:07]} bxc5 {[%emt 0:00:04]} 34. b5 {[%emt 0:00:01]} (34. bxc5 $11 {and White has nothing to worry.} Qxc5 35. Qb7+ Kf6 36. Qh7) 34... Nd7 {[%emt 0:01:54]} (34... Qd2 $19 35. Kf1 Nd7) 35. Bf1 {[%emt 0:01:47]} g4 {[%emt 0:01:10]} (35... h5 $17) 36. Qa2 $1 {[%emt 0:03:43]} Qd4 {[%emt 0:02:07]} 37. Qa7 {[%emt 0:02:13]} Qd6 {[%emt 0:00:34]} 38. Qa1 {[%emt 0:01:08]} Qd4 {[%emt 0:01:11]} 39. Qc1 {[%emt 0:00:33]} Nb6 {[%emt 0:00:52] And now ...c4 would win.} 40. Qxh6 {[%emt 0:02:16] [#]} (40. Bg2 $11 {keeps the balance.}) 40... c4 $1 $17 {[%emt 0:00:13][%cal Bc5c4,Bc4c3][%mdl 32] Active counter play!} 41. Qh7+ {[%emt 0:05:54] [#]} Kd6 $1 {[%emt 0:00:19]} 42. Qb7 {[%emt 0:00:49]} c3 {[%emt 0:18:32]} 43. Qc6+ {[%emt 0:00:31]} Ke7 {[%emt 0:00:20] aiming for ...Nd7.} 44. Be2 $2 {[%emt 0:03:06][%mdl 8192]} (44. Qc7+ $17 Nd7 45. b6) 44... Nd7 $19 {[%emt 0:01:19] Threatens to win with ...Qd2. Black is clearly winning.} 45. b6 {[%emt 0:04:28]} Nxb6 {[%emt 0:01:24]} (45... Qd2 $142 46. Bc4 Qd1+ 47. Kg2 Qf3+ 48. Qxf3 gxf3+ 49. Kxf3 c2) 46. Qb7+ {[%emt 0:00:32]} Nd7 {[%emt 0:02:30] ( -> ...c2)} 47. Qb3 {[%emt 0:00:16] Inhibits c2.} Nc5 {[%emt 0:01:39] Weighted Error Value: White=0.35/Black=0.23 (precise)} 0-1

[Event "German Bundesliga 2022-23"]
[Site "Germany"]
[Date "2022.11.26"]
[Round "3.16"]
[White "Rafiee, Makan"]
[Black "Dgebuadze, Alexandre"]
[Result "0-1"]
[ECO "C11"]
[WhiteElo "2293"]
[BlackElo "2420"]
[Annotator "TA"]
[PlyCount "58"]
[EventDate "2022.10.21"]
[EventType "team-tourn"]
[EventCountry "GER"]
[SourceTitle "playchess.com"]
[Source "ChessBase"]
[SourceQuality "1"]
[TimeControl "40/6000+30:3000+30"]

{[%evp 12,58,4,5,17,22,14,4,23,-14,-2,-31,-31,-33,-27,-45,-9,-74,-57,-62,-8,-12,0,0,0,0,0,-3,0,0,0,0,0,-174,-168,-495,-504,-463,-431,-612,-605,-605,-603,-595,-583,-582,-582,-570,-568]} 1. e4 {[%emt 0:00:02]} e6 {[%emt 0:00:27]} 2. d4 {[%emt 0:00:08]} d5 {[%emt 0:00:05]} 3. Nc3 {[%emt 0:00:06]} Nf6 {[%emt 0:00:08]} 4. e5 {[%emt 0:00:20]} Nfd7 {[%emt 0:00:05]} 5. f4 {[%emt 0:01:03]} c5 {[%emt 0:00:06]} 6. Nce2 {[%emt 0:00:28]} Nc6 {[%emt 0:01:48]} 7. c3 {[%emt 0:00:22]} a5 {[%emt 0:02:52] C11: French: Classical System: 4 e5 and 4 Bg5 dxe4.} 8. Nf3 {[%emt 0:01:20]} Be7 {[%emt 0:00:30]} 9. g3 {[%emt 0:03:37]} a4 {[%emt 0:03:04] [#] The position is equal.} 10. a3 $146 {[%emt 0:01:00]} ({Predecessor:} 10. Bg2 a3 11. b3 cxd4 12. cxd4 f6 13. O-O O-O 14. Be3 Qb6 15. Bf2 Bb4 16. Rc1 {1-0 (38) Willow,J (2255)-Klingher,D (2189) London 2019}) 10... O-O {[%emt 0:06:48]} 11. Bg2 {[%emt 0:01:58]} Nb6 {[%emt 0:04:04]} 12. O-O {[%emt 0:01:14]} Nc4 {[%emt 0:04:33]} 13. g4 {[%emt 0:16:25]} cxd4 {[%emt 0:01:21]} 14. cxd4 {[%emt 0:02:43]} (14. Nexd4 $11 {remains equal.} Qb6 15. Qe2) 14... Qb6 {[%emt 0:04:18] Black has more active pieces. The white rooks are badly placed.} 15. Qd3 {[%emt 0:09:17]} Ra5 {[%emt 0:22:49]} (15... Nxb2 $2 16. Bxb2 Bd7 17. Bc3 $18) (15... Bd7 $15) 16. Nd2 $11 {[%emt 0:13:57]} f6 {[%emt 0:12:53][%cal Rf6e5]} (16... Nxb2 $2 17. Bxb2 Qb5 18. Qxb5 Rxb5 19. Rfb1 $18) (16... Nxd2 {simplifies} 17. Bxd2 Rb5 18. Bc3 Na5) 17. Nxc4 {[%emt 0:16:43]} dxc4 {[%emt 0:00:40]} 18. Qxc4 {[%emt 0:00:10]} fxe5 {[%emt 0:00:22]} 19. fxe5 {[%emt 0:01:28]} Rxf1+ {[%emt 0:13:49]} (19... Rxe5 {is more complex.} 20. Bd2 Rd8 21. Kh1 Qb5) 20. Kxf1 {[%emt 0:01:29]} Bd7 {[%emt 0:00:12]} 21. Be4 {[%emt 0:18:39]} Ra8 {[%emt 0:02:06][%cal Oc6e5,Ba5a8,Ba8f8,Bf8f4][%mdl 32] aiming for ...Nxe5!} 22. Bf4 {[%emt 0:05:23] [#]} (22. Qd3 $11 {and White is okay.} h6 23. Kg2) 22... Rf8 $1 $19 {[%emt 0:05:55][%cal Oc6d4] Threatens to win with ...Nxd4!} 23. Kg2 $2 {[%emt 0:06:57] [#]} (23. Qd3 {nothing else works.} h5 24. Kg1) 23... Rxf4 $1 {[%emt 0:07:47][%mdl 576] Black is clearly winning.} 24. Nxf4 {[%emt 0:00:08] Strongly threatening b4.} Qxb2+ {[%emt 0:00:05]} ({Weaker is} 24... Qxd4 25. Qxd4 Nxd4 26. Rd1 $18) 25. Bc2 {[%emt 0:02:02]} (25. Qc2 $142 Qxa1 26. Bxh7+ Kf8 27. d5 Nxe5 28. Nxe6+ Bxe6 29. dxe6) 25... Qxa1 {[%emt 0:06:23]} 26. Qd3 {[%emt 0:00:12]} g6 {[%emt 0:00:19]} (26... Qxa3 $2 {leads to mate.} 27. Qxh7+ Kf8 28. Qh8+ Kf7 29. Bg6#) 27. Nxg6 {[%emt 0:00:49]} Qxa3 {[%emt 0:00:20]} ({Worse is} 27... hxg6 28. Qxg6+ Kf8 29. Qh5 $11) 28. Nxe7+ {[%emt 0:01:25]} Qxe7 {[%emt 0:00:14]} 29. Bxa4 {[%emt 0:00:37] [#]} Nxe5 $1 {[%emt 0:00:59][%mdl 512] Weighted Error Value: White=0.52/Black=0.08 (flawless)} 0-1

[Event "German Bundesliga 2022-23"]
[Site "Germany"]
[Date "2002.01.09"]
[Round "4"]
[White "Harikrishna, Pentala"]
[Black "Jones, Gawain C B"]
[Result "0-1"]
[ECO "A49"]
[WhiteElo "2715"]
[BlackElo "2623"]
[Annotator "TA"]
[PlyCount "160"]
[EventDate "2022.10.21"]
[EventType "team-tourn"]
[EventCountry "GER"]
[SourceTitle "playchess.com"]
[Source "ChessBase"]
[SourceQuality "1"]
[TimeControl "40/6000+30:3000+30"]

{[%evp 9,160,11,9,8,7,5,11,0,1,12,13,9,16,0,0,2,13,-7,7,0,0,0,0,8,3,6,0,16,14,0,11,22,14,22,53,50,56,-9,-9,-1,-12,0,0,-104,-93,-75,-64,-65,-66,-74,-77,-79,-72,-132,-132,-193,-193,-200,-180,-177,-60,-64,-53,-45,-43,-169,-168,-174,-174,-168,-148,-227,-233,-218,-225,-218,-231,-213,-123,-215,-206,-222,-217,-237,-110,-110,-122,-405,-218,-259,-215,-237,-229,-229,-229,-259,-208,-212,-209,-259,-193,-184,0,-259,-259,-252,-233,-245,-245,-237,-203,-560,-401,-402,-397,-340,-302,-629,-623,-575,-546,-689,-431,-463,-473,-466,-446,-460,-438,-404,0,-237,0,-487,-486,-427,-264,-247,-262,-2131,-1968,-1487,-1054,-2628,-2391,-1877,-1877,-2050,-1921,-977,-977,-29980,-29981]} 1. d4 {[%emt 0:01:00]} Nf6 {[%emt 0:01:00]} 2. Nf3 {[%emt 0:00:00][%cal Bg1f3,Bf3d2,Bd2b3][%mdl 32]} g6 {[%emt 0:00:00]} 3. g3 {[%emt 0:00:00]} Bg7 {[%emt 0:00:00]} 4. Bg2 {[%emt 0:00:00]} c5 {[%emt 0:00:30]} 5. dxc5 {[%emt 0:00:00]} Qa5+ {[%emt 0:00:30] [#]} 6. Nfd2 $146 {[%emt 0:00:30] A49: 1 d4 Nf6 2 Nf3 g6 3 g3: Anti-King's Indian systems.} ({Predecessor:} 6. c3 Qxc5 7. O-O O-O 8. Nbd2 {½-½ (8) Miladinovic,I (2500)-Arsovic,G (2535) Niksic 1997}) 6... Qxc5 {[%emt 0:01:30]} 7. Nb3 {[%emt 0:00:30]} Qc7 {[%emt 0:02:30]} 8. Nc3 {[%emt 0:00:30] The position is equal.} d6 {[%emt 0:00:30]} 9. O-O {[%emt 0:01:30]} Nc6 {[%emt 0:11:30]} 10. e4 {[%emt 0:01:30]} Bg4 {[%emt 0:08:30]} 11. Qe1 {[%emt 0:04:30]} (11. Nd5 $5 {[%cal Rd5c7]} Qd7 12. f3 $11) 11... Qc8 {[%emt 0:13:30]} 12. Bg5 {[%emt 0:13:30]} h6 {[%emt 0:08:30]} 13. Be3 {[%emt 0:03:30]} Bh3 {[%emt 0:15:30]} 14. Bxh3 {[%emt 0:05:30]} Qxh3 {[%emt 0:00:00]} 15. f3 {[%emt 0:00:30] Inhibits Ng4.} O-O {[%emt 0:04:00]} 16. Nd5 {[%emt 0:04:30]} Rfc8 {[%emt 0:05:30]} 17. c3 {[%emt 0:06:30]} Nxd5 {[%emt 0:02:30]} 18. exd5 {[%emt 0:00:30]} Ne5 {[%emt 0:00:30]} 19. Qe2 {[%emt 0:02:30]} Nc4 {[%emt 0:03:30]} 20. Bd4 {[%emt 0:05:30]} Qf5 {[%emt 0:02:30]} 21. Rad1 {[%emt 0:08:30]} Rc7 {[%emt 0:08:30]} 22. Bxg7 {[%emt 0:06:30]} Kxg7 {[%emt 0:00:00]} 23. Rd4 {[%emt 0:00:30] Prevents h5.} (23. f4 $14) 23... Qe5 $11 {[%emt 0:02:04]} 24. Re1 {[%emt 0:05:30] Black must now prevent Qf1.} Qxe2 {[%emt 0:00:14]} 25. Rxe2 {[%emt 0:00:00]} a5 {[%emt 0:02:11]} 26. a4 {[%emt 0:09:00]} (26. Rde4 $11 {keeps the balance.}) 26... b5 {[%emt 0:01:52]} 27. axb5 {[%emt 0:09:30]} Rb8 {[%emt 0:00:16]} 28. Nd2 {[%emt 0:09:16]} Nxb2 {[%emt 0:01:50]} 29. c4 {[%emt 0:00:17]} Rbc8 {[%emt 0:00:24] Black is more active.} 30. Rde4 {[%emt 0:01:40]} Kf8 {[%emt 0:06:19]} 31. c5 {[%emt 0:06:01]} ({Better is} 31. Kg2) 31... Rxc5 $17 {[%emt 0:00:16]} 32. Rxe7 {[%emt 0:02:04]} (32. b6 $17) 32... Rxb5 $19 {[%emt 0:01:40]} 33. Ra7 {[%emt 0:01:17]} Rxd5 {[%emt 0:04:21]} 34. Ree7 {[%emt 0:01:44]} Rc1+ {[%emt 0:01:15]} ({Weaker is} 34... Rxd2 35. Rxf7+ Ke8 36. Rfe7+ Kf8 37. Rf7+ Kg8 38. Rg7+ Kh8 39. Rh7+ Kg8 40. Rhg7+ Kf8 41. Rgf7+ $11) (34... Rf5 $1 $19 35. f4 Rc1+ 36. Kf2 Nd3+ 37. Kf3 Rc2) 35. Kg2 $1 $15 {[%emt 0:01:49]} Rf5 {[%emt 0:00:17]} ({Reject} 35... Rxd2+ 36. Kh3 $11) 36. g4 {[%emt 0:01:00]} Rf4 {[%emt 0:00:09] Hoping for ...Nd3.} 37. h4 {[%emt 0:01:08]} (37. Ne4 $15) 37... Nd3 $19 {[%emt 0:01:12] aiming for ...Rc2.} 38. Re3 {[%emt 0:00:35]} Rd4 {[%emt 0:00:26]} 39. Ne4 {[%emt 0:00:25]} Kg7 {[%emt 0:03:36] Prevents Nf6.} 40. g5 {[%emt 0:00:29]} (40. Rd7 $17 {was worth a try.}) 40... Nf4+ {[%emt 0:00:00]} 41. Kg3 {[%emt 0:03:15]} Nh5+ {[%emt 0:15:38]} 42. Kf2 {[%emt 0:00:30]} hxg5 {[%emt 0:07:30]} 43. hxg5 {[%emt 0:00:30]} a4 {[%emt 0:10:17] Inhibits Rb3.} ({Black should try} 43... Rdd1 $19 44. Ng3 Nxg3 45. Kxg3 Rg1+ 46. Kf4 Rc5) 44. Ra3 {[%emt 0:06:30]} (44. Rc3 $17 Rxc3 45. Nxc3) 44... Rdd1 $1 {[%emt 0:07:02]} 45. R3xa4 {[%emt 0:04:30][%cal Oe4f6]} Nf4 {[%emt 0:02:36]} 46. Ra2 {[%emt 0:01:30] Inhibits Rc2+.} d5 {[%emt 0:04:11]} (46... Rg1 $1 $19 {is more deadly. Threatens to win with ...Rce1.} 47. Nxd6 Nh3+ 48. Ke3 Rc3+ 49. Kd4 Rxf3 50. Ne8+ Kf8) 47. Nd6 $17 {[%emt 0:01:30]} Nh3+ {[%emt 0:00:07]} 48. Ke3 $2 {[%emt 0:03:30][%mdl 8192]} (48. Ke2 $17 {was necessary.} Nxg5 49. f4) 48... Nxg5 {[%emt 0:03:39]} (48... d4+ $142 49. Ke2 Re1+ 50. Kd2 Nxg5) 49. Rg2 $19 {[%emt 0:01:30]} Re1+ {[%emt 0:03:14]} 50. Kf4 {[%emt 0:01:30]} Ne6+ {[%emt 0:00:35]} 51. Kg3 {[%emt 0:01:30] [#]} Nc7 $1 {[%emt 0:00:03]} 52. Rh2 {[%emt 0:03:30]} Re7 {[%emt 0:01:25]} ({And not} 52... Re6 53. Nxf7 Kxf7 54. Rh7+ Kf6 55. Rhxc7 Rxc7 56. Rxc7 $17) 53. Nb5 {[%emt 0:01:30]} Kf6 {[%emt 0:00:09]} 54. Nd4 {[%emt 0:00:30]} Rg1+ {[%emt 0:00:20]} 55. Kf2 {[%emt 0:00:30]} Rc1 {[%emt 0:00:11]} (55... Rb1 $142 56. Nc6 Rd7) 56. Kg3 $1 {[%emt 0:00:30]} Ne6 {[%emt 0:00:10]} 57. Ra6 {[%emt 0:00:00]} Rg1+ {[%emt 0:00:15]} 58. Kf2 {[%emt 0:00:00]} Rd1 {[%emt 0:00:06]} 59. Rh4 {[%emt 0:01:30]} Kg7 {[%emt 0:00:08]} 60. Nb5 $2 {[%emt 0:00:30]} (60. Nxe6+ {nothing else works.} Rxe6 61. Rxe6 fxe6 62. Rb4) 60... Nc5 {[%emt 0:00:46]} 61. Ra2 {[%emt 0:00:30] Against Rd2+} Nd3+ {[%emt 0:00:36]} 62. Kg3 {[%emt 0:00:30]} Rg1+ {[%emt 0:00:18]} 63. Kh2 $2 {[%emt 0:01:30]} (63. Rg2 Rf1 64. Nd4) 63... Ree1 {[%emt 0:00:07] Strongly threatening ...Rh1+.} 64. Rd4 {[%emt 0:00:30]} Ne5 {[%emt 0:00:38]} 65. Rf2 {[%emt 0:00:00]} Rh1+ {[%emt 0:01:42]} 66. Kg3 {[%emt 0:00:00]} Reg1+ {[%emt 0:00:05]} 67. Rg2 {[%emt 0:03:30]} Rf1 {[%emt 0:00:03][%csl Ge5][%cal Rf1f3]} 68. Rf2 {[%emt 0:00:00]} Rhg1+ {[%emt 0:00:15]} 69. Kh2 {[%emt 0:00:00]} Rh1+ {[%emt 0:00:02]} (69... Rxf2+ $142 70. Kxg1 {[#]} Rd2 $3 {[%mdl 512]} 71. Rxd2 Nxf3+ 72. Kf2 Nxd2) 70. Kg3 {[%emt 0:00:00]} Rhg1+ $2 {[%emt 0:00:07]} (70... Rd1 71. Rxd1 Rxd1) 71. Kh2 {[%emt 0:00:00]} Rxf2+ {[%emt 0:00:06]} 72. Kxg1 {[%emt 0:00:30]} Rxf3 {[%emt 0:00:38] And now ...Rd3 would win.} 73. Rxd5 {[%emt 0:00:00][%mdl 4096] Endgame KRN-KRN} Rf5 {[%emt 0:00:08] ( -> ...Nf3+)} 74. Kh1 $2 {[%emt 0:00:00]} (74. Nc3) 74... Rh5+ {[%emt 0:00:21]} 75. Kg2 {[%emt 0:00:30] [#]} Nd3 $1 {[%emt 0:00:16][%mdl 512]} 76. Rxh5 {[%emt 0:00:30]} (76. Rxd3 Rxb5) 76... Nf4+ {[%emt 0:00:07]} 77. Kf3 {[%emt 0:00:00]} Nxh5 {[%emt 0:00:00]} 78. Ke4 {[%emt 0:00:00]} Kf6 {[%emt 0:00:56]} 79. Nc7 {[%emt 0:00:30]} Kg5 {[%emt 0:00:11]} 80. Nd5 {[%emt 0:00:30]} Nf6+ {[%emt 0:00:07] Weighted Error Value: White=0.29 (precise) /Black=0.22 (precise)} 0-1